fUST/lending_fUST_20250302
["ID","MTS","AMOUNT","RATE_DAILY","PERIOD"]
[354981464,1740856239758,-500.0,0.00024899,2]
[354981466,1740856239767,-813.58,0.00024899,2]
[354981468,1740856239778,-933.62,0.00024899,2]
[354981470,1740856239787,-500.0,0.00024899,2]
[354981472,1740856239798,-500.0,0.00024899,2]
[354981474,1740856239808,-14955.51,0.00024899,2]
[354981476,1740856239818,-503.01077724,0.00024899,2]
[354981478,1740856239827,-500.0,0.00024899,2]
[354981481,1740856239837,-796.04,0.00024899,2]
[354981505,1740856240027,-500.0,0.00024899,2]
[354981509,1740856240095,-500.0,0.00024899,2]
[354981511,1740856240106,-500.0,0.00024899,2]
[354981513,1740856240116,-500.0,0.00024899,2]
[354981515,1740856240125,-500.0,0.00024899,2]
[354981517,1740856240135,-533.52185495,0.00024899,2]
[354981519,1740856240145,-500.0,0.00024899,2]
[354981521,1740856240155,-500.0,0.00024899,2]
[354981523,1740856240164,-500.0,0.00024899,2]
[354981525,1740856240174,-500.0,0.00024899,2]
[354981527,1740856240184,-500.0,0.00024899,2]
[354981529,1740856240194,-500.0,0.00024899,2]
[354981531,1740856240204,-500.0,0.00024899,2]
[354981533,1740856240214,-500.0,0.00024899,2]
[354981535,1740856240224,-500.0,0.00024899,2]
[354981537,1740856240234,-500.0,0.00024899,2]
[354981539,1740856240244,-500.0,0.00024899,2]
[354981541,1740856240254,-500.0,0.00024899,2]
[354981543,1740856240263,-500.0,0.00024899,2]
[354981545,1740856240273,-500.0,0.00024899,2]
[354981547,1740856240282,-500.0,0.00024899,2]
[354981549,1740856240291,-500.0,0.00024899,2]
[354981551,1740856240301,-961.27,0.00024899,2]
[354981553,1740856240311,-500.0,0.00024899,2]
[354981555,1740856240321,-1593.74,0.00024899,2]
[354981557,1740856240334,-500.0,0.00024899,2]
[354981558,1740856240343,-500.0,0.00024899,2]
[354981560,1740856240352,-500.0,0.00024899,2]
[354981562,1740856240362,-157.57468743,0.00024899,2]
[354981564,1740856240372,-500.0,0.00024899,2]
[354981566,1740856240382,-696.22,0.00024899,2]
[354981568,1740856240393,-500.0,0.00024899,2]
[354981570,1740856240402,-500.0,0.00024899,2]
[354981572,1740856240411,-897.06,0.00024899,2]
[354981574,1740856240421,-500.0,0.00024899,2]
[354981576,1740856240435,-500.0,0.00024899,2]
[354981578,1740856240445,-1878.41,0.00024899,2]
[354981580,1740856240456,-222000.0,0.000249,2]
[354981582,1740856240467,-151.0,0.000249,10]
[354981584,1740856240476,-457.65,0.000249,7]
[354981586,1740856240486,-598.78718556,0.00024936,2]
[354981588,1740856240495,-151.0,0.00024984,2]
[354981590,1740856240506,-500.0,0.00024984,2]
[354981592,1740856240516,-554.08,0.00024997,2]
[354981594,1740856240525,-500.0,0.00024997,2]
[354981596,1740856240535,-554.08,0.00024998,2]
[354981598,1740856240545,-554.08,0.00024998,2]
[354981600,1740856240555,-554.08,0.00024998,2]
[354981602,1740856240564,-554.08,0.00024998,2]
[354981604,1740856240577,-554.08,0.00024998,2]
[354981606,1740856240586,-500.0,0.00024998,2]
[354981608,1740856240596,-500.0,0.00024998,2]
[354981610,1740856240606,-500.0,0.00024998,2]
[354981612,1740856240615,-500.0,0.00024998,2]
[354981614,1740856240625,-500.0,0.00024998,2]
[354981616,1740856240636,-500.0,0.00024999,2]
[354981618,1740856240645,-500.0,0.00024999,2]
[354981620,1740856240655,-500.0,0.00024999,2]
[354981622,1740856240665,-500.0,0.00024999,2]
[354981624,1740856240675,-500.0,0.00024999,2]
[354981626,1740856240685,-1180.47,0.00024999,2]
[354981628,1740856240695,-845.17,0.00024999,2]
[354981630,1740856240704,-500.0,0.00024999,2]
[354981632,1740856240715,-500.0,0.00024999,2]
[354981634,1740856240724,-500.0,0.00024999,2]
[354981636,1740856240734,-500.0,0.00024999,2]
[354981638,1740856240744,-500.0,0.00024999,2]
[354981640,1740856240754,-500.0,0.00024999,2]
[354981643,1740856240764,-500.0,0.00024999,2]
[354981644,1740856240774,-500.0,0.00024999,2]
[354981647,1740856240784,-500.0,0.00024999,2]
[354981648,1740856240793,-500.0,0.00024999,2]
[354981650,1740856240803,-978.95,0.00024999,2]
[354981653,1740856240813,-500.0,0.00024999,2]
[354981654,1740856240823,-500.0,0.00024999,2]
[354981656,1740856240833,-910.71,0.00024999,2]
[354981658,1740856240843,-1440.76,0.00024999,2]
[354981660,1740856240852,-842.47,0.00024999,2]
[354981662,1740856240861,-500.0,0.00024999,2]
[354981664,1740856240871,-500.0,0.00024999,2]
[354981667,1740856240882,-688.58,0.00024999,2]
[354981668,1740856240892,-500.0,0.00024999,2]
[354981670,1740856240902,-500.0,0.00024999,2]
[354981672,1740856240912,-602.24,0.00024999,2]
[354981675,1740856240922,-500.0,0.00024999,2]
[354981677,1740856240932,-551.6,0.00024999,2]
[354981679,1740856240942,-500.0,0.00024999,2]
[354981681,1740856240951,-2518.52,0.00024999,2]
[354981683,1740856240960,-500.0,0.00024999,2]
[354981684,1740856240970,-500.0,0.00024999,2]
[354981686,1740856240980,-1649.68,0.00024999,2]
[354981688,1740856240990,-1003.92,0.00024999,2]
[354981691,1740856241000,-500.0,0.00024999,2]
[354981693,1740856241009,-292.87633386,0.00024999,2]
[354981695,1740856241019,-501.82,0.00024999,2]
[354981696,1740856241029,-500.0,0.00024999,2]
[354981698,1740856241038,-500.0,0.00024999,2]
[354981700,1740856241048,-1003.16,0.00024999,2]
[354981702,1740856241058,-500.0,0.00024999,2]
[354981704,1740856241067,-2581.08,0.00024999,2]
[354981706,1740856241077,-500.0,0.00024999,2]
[354981708,1740856241087,-500.0,0.00024999,2]
[354981710,1740856241096,-500.0,0.00024999,2]
[354981712,1740856241106,-500.0,0.00024999,2]
[354981714,1740856241115,-500.0,0.00024999,2]
[354981716,1740856241125,-914.51,0.00024999,2]
[354981718,1740856241135,-853.07,0.00024999,2]
[354981720,1740856241145,-500.0,0.00024999,2]
[354981722,1740856241155,-500.0,0.00024999,2]
[354981724,1740856241165,-770.84,0.00024999,2]
[354981726,1740856241175,-1457.14,0.00024999,2]
[354981728,1740856241185,-500.0,0.00024999,2]
[354981730,1740856241194,-1864.39,0.00024999,2]
[354981732,1740856241204,-500.0,0.00024999,2]
[354981734,1740856241214,-500.0,0.00024999,2]
[354981736,1740856241224,-4735.12,0.00024999,2]
[354981738,1740856241234,-500.0,0.00024999,2]
[354981740,1740856241244,-151.0,0.00025,8]
[354981742,1740856241254,-598.78718556,0.00025005,2]
[354981744,1740856241263,-3972.88093635,0.00025008,2]
[354981746,1740856241273,-598.78718556,0.00025073,2]
[354981748,1740856241282,-162.85000331,0.00025073,2]
[354981750,1740856241292,-151.0,0.000251,18]
[354981752,1740856241302,-151.0,0.000251,12]
[354981754,1740856241311,-151.0,0.000251,14]
[354981756,1740856241321,-348.45958714,0.0002514,2]
[354981758,1740856241331,-154.744732,0.00025152,14]
[354981760,1740856241341,-554.08,0.00025172,2]
[354981762,1740856241350,-554.08,0.00025172,2]
[354981764,1740856241360,-554.08,0.00025172,2]
[354981766,1740856241370,-554.08,0.00025172,2]
[354981768,1740856241380,-554.24,0.00025172,2]
[354981770,1740856241391,-1776.03,0.00025172,2]
[354981772,1740856241401,-4379.09,0.00025172,2]
[354981774,1740856241410,-925.77,0.00025172,2]
[354981776,1740856241420,-616.35,0.00025172,2]
[354981778,1740856241435,-1338.29,0.00025172,2]
[354981780,1740856241445,-500.0,0.00025172,2]
[354981782,1740856241456,-500.0,0.00025172,2]
[354981785,1740856241467,-15430.04,0.00025172,2]
[354981787,1740856241479,-9682.22,0.00025172,2]
[354981789,1740856241488,-207.29819948,0.00025172,2]
[354981791,1740856241498,-7345.59,0.00025172,2]
[354981793,1740856241509,-500.0,0.00025172,2]
[354981795,1740856241519,-3289.57,0.00025172,2]
[354981797,1740856241529,-4569.17,0.00025172,2]
[354981799,1740856241539,-1040.62,0.00025172,5]
[354981801,1740856241548,-1863.2,0.00025172,2]
[354981803,1740856241557,-1495.27,0.00025172,2]
[354981805,1740856241567,-6804.97,0.00025172,2]
[354981807,1740856241577,-500.0,0.00025172,2]
[354981809,1740856241586,-1389.43,0.00025172,2]
[354981811,1740856241595,-500.0,0.00025172,2]
[354981813,1740856241605,-5656.76,0.00025172,2]
[354981815,1740856241614,-964.63,0.00025172,2]
[354981817,1740856241624,-3103.69,0.00025172,2]
[354981819,1740856241633,-986.66,0.00025172,2]
[354981820,1740856241643,-10046.41,0.00025172,2]
[354981821,1740856241653,-500.0,0.00025172,2]
[354981822,1740856241662,-503.34,0.00025172,2]
[354981823,1740856241671,-500.0,0.00025172,2]
[354981824,1740856241681,-3429.04,0.00025172,2]
[354981825,1740856241690,-176.47289892,0.00025172,2]
[354981826,1740856241699,-444.60848164,0.00025172,2]
[354981827,1740856241709,-500.0,0.00025172,2]
[354981828,1740856241718,-1406.95,0.00025172,2]
[354981829,1740856241728,-500.0,0.00025172,2]
[354981830,1740856241737,-569.6,0.00025172,2]
[354981831,1740856241747,-500.0,0.00025172,2]
[354981832,1740856241756,-500.0,0.00025172,2]
[354981833,1740856241765,-25000.0,0.00025173,2]
[354981834,1740856241774,-500.0,0.00025173,2]
[354981835,1740856241784,-500.0,0.00025173,2]
[354981836,1740856241793,-500.0,0.00025173,2]
[354981837,1740856241802,-500.0,0.00025173,2]
[354981838,1740856241811,-500.0,0.00025173,2]
[354981839,1740856241820,-500.0,0.00025173,2]
[354981840,1740856241829,-500.0,0.00025173,2]
[354981841,1740856241839,-500.0,0.00025173,2]
[354981842,1740856241848,-500.0,0.00025173,2]
[354981843,1740856241857,-500.0,0.00025173,2]
[354981845,1740856241866,-500.0,0.00025173,2]
[354981847,1740856241875,-500.0,0.00025173,2]
[354981849,1740856241884,-500.0,0.00025173,2]
[354981851,1740856241894,-500.0,0.00025173,2]
[354981853,1740856241903,-500.0,0.00025173,2]
[354981855,1740856241913,-960.94,0.00025173,2]
[354981857,1740856241922,-500.0,0.00025173,2]
[354981859,1740856241931,-500.0,0.00025173,2]
[354981861,1740856241941,-588.7,0.00025173,2]
[354981863,1740856241950,-500.0,0.00025173,2]
[354981865,1740856241960,-800.56,0.00025173,2]
[354981867,1740856241969,-373.60693392,0.00025173,2]
[354981869,1740856241979,-785.35,0.00025173,2]
[354981871,1740856241989,-500.0,0.00025173,2]
[354981873,1740856241998,-500.0,0.00025173,2]
[354981875,1740856242007,-500.0,0.00025173,2]
[354981877,1740856242017,-501.87,0.00025173,2]
[354981879,1740856242027,-500.0,0.00025173,2]
[354981881,1740856242036,-507.75302254,0.00025173,2]
[354981883,1740856242046,-1483.81,0.00025173,2]
[354981885,1740856242055,-500.0,0.00025173,2]
[354981887,1740856242064,-500.0,0.00025173,2]
[354981889,1740856242074,-500.0,0.00025173,2]
[354981891,1740856242083,-500.0,0.00025173,2]
[354981893,1740856242093,-500.0,0.00025173,2]
[354981895,1740856242103,-1607.46,0.00025173,2]
[354981897,1740856242112,-500.0,0.00025173,2]
[354981899,1740856242121,-759.6,0.00025173,2]
[354981902,1740856242132,-500.0,0.00025173,2]
[354981903,1740856242141,-200.0,0.00025173,2]
[354981906,1740856242151,-500.0,0.00025173,2]
[354981908,1740856242161,-500.0,0.00025173,2]
[354981910,1740856242171,-500.0,0.00025173,2]
[354981912,1740856242180,-500.0,0.00025173,2]
[354981914,1740856242189,-1773.71,0.00025173,2]
[354981916,1740856242199,-500.0,0.00025173,2]
[354981918,1740856242209,-500.0,0.00025173,2]
[354981920,1740856242219,-500.0,0.00025173,2]
[354981922,1740856242228,-500.0,0.00025173,2]
[354981924,1740856242238,-500.0,0.00025173,2]
[354981926,1740856242247,-688.89,0.00025173,2]
[354981928,1740856242257,-500.0,0.00025173,2]
[354981930,1740856242266,-1081.9,0.00025173,2]
[354981932,1740856242276,-500.0,0.00025173,2]
[354981934,1740856242285,-500.0,0.00025173,2]
[354981936,1740856242295,-500.0,0.00025173,2]
[354981938,1740856242305,-500.0,0.00025173,2]
[354981940,1740856242314,-594.32,0.00025173,2]
[354981942,1740856242324,-645.39,0.00025173,2]
[354981944,1740856242333,-500.0,0.00025173,2]
[354981946,1740856242343,-500.0,0.00025173,2]
[354981948,1740856242353,-500.0,0.00025173,2]
[354981950,1740856242362,-500.0,0.00025173,2]
[354981952,1740856242372,-500.0,0.00025173,2]
[354981954,1740856242381,-1181.76,0.00025173,2]
[354981956,1740856242392,-500.0,0.00025173,2]
[354981958,1740856242401,-564.86,0.00025173,2]
[354981960,1740856242411,-500.0,0.00025173,2]
[354981962,1740856242421,-500.0,0.00025173,2]
[354981963,1740856242435,-519.53789569,0.00025173,2]
[354981966,1740856242445,-500.0,0.00025173,2]
[354981967,1740856242454,-500.0,0.00025173,2]
[354981969,1740856242464,-500.0,0.00025173,2]
[354981971,1740856242474,-1072.11,0.00025173,2]
[354981973,1740856242485,-792.8,0.00025173,2]
[354981975,1740856242494,-500.0,0.00025173,2]
[354981977,1740856242505,-500.0,0.00025173,2]
[354981979,1740856242515,-500.0,0.00025173,2]
[354981988,1740856242592,-500.0,0.00025173,2]
[354981990,1740856242602,-1890.72,0.00025173,2]
[354981992,1740856242611,-619.74,0.00025173,2]
[354981994,1740856242621,-500.0,0.00025173,2]
[354981996,1740856242630,-500.0,0.00025173,2]
[354981999,1740856242641,-1316.52,0.00025173,2]
[354982002,1740856242651,-500.0,0.00025173,2]
[354982004,1740856242661,-702.24,0.00025173,2]
[354982006,1740856242671,-500.0,0.00025173,2]
[354982008,1740856242680,-500.0,0.00025173,2]
[354982010,1740856242689,-500.0,0.00025173,2]
[354982012,1740856242698,-1276.83,0.00025173,2]
[354982014,1740856242707,-500.0,0.00025173,2]
[354982016,1740856242717,-925.95,0.00025173,2]
[354982018,1740856242727,-500.0,0.00025173,2]
[354982019,1740856242736,-500.0,0.00025173,2]
[354982021,1740856242745,-500.0,0.00025173,2]
[354982023,1740856242755,-500.0,0.00025173,2]
[354982025,1740856242765,-500.0,0.00025173,2]
[354982027,1740856242774,-375.71,0.00025173,2]
[354982029,1740856242783,-3493.59,0.00025173,2]
[354982031,1740856242793,-500.0,0.00025173,2]
[354982033,1740856242802,-2069.48,0.00025173,2]
[354982035,1740856242811,-942.22,0.00025173,2]
[354982037,1740856242820,-500.0,0.00025173,2]
[354982039,1740856242829,-2051.77,0.00025173,2]
[354982041,1740856242838,-500.0,0.00025173,2]
[354982043,1740856242847,-500.0,0.00025173,2]
[354982045,1740856242857,-500.0,0.00025173,2]
[354982047,1740856242866,-582.73,0.00025173,2]
[354982049,1740856242876,-500.0,0.00025173,2]
[354982051,1740856242885,-398.54965519,0.00025173,2]
[354982053,1740856242896,-500.0,0.00025173,2]
[354982055,1740856242905,-502.5,0.00025173,2]
[354982057,1740856242915,-1986.76,0.00025173,2]
[354982059,1740856242924,-500.0,0.00025173,2]
[354982061,1740856242934,-500.0,0.00025173,2]
[354982063,1740856242944,-1432.7,0.00025173,2]
[354982065,1740856242954,-500.0,0.00025173,2]
[354982067,1740856242964,-500.0,0.00025173,2]
[354982069,1740856242973,-500.0,0.00025173,2]
[354982071,1740856242983,-185482.09,0.00025173,2]
[354982073,1740856242993,-500.0,0.00025173,2]
[354982075,1740856243002,-500.0,0.00025173,2]
[354982077,1740856243011,-623.35,0.00025173,2]
[354982079,1740856243021,-500.0,0.00025173,2]
[354982081,1740856243030,-878.29,0.00025173,2]
[354982083,1740856243040,-1836.81,0.00025173,2]
[354982085,1740856243049,-500.0,0.00025173,2]
[354982087,1740856243059,-517.22,0.00025173,2]
[354982089,1740856243068,-2028.54,0.00025173,2]
[354982090,1740856243077,-755.28,0.00025173,2]
[354982093,1740856243087,-3380.82,0.00025173,2]
[354982094,1740856243097,-494.34112678,0.00025173,2]
[354982096,1740856243106,-500.0,0.00025173,2]
[354982098,1740856243115,-1111.42,0.00025173,2]
[354982100,1740856243125,-1107.31,0.00025173,2]
[354982102,1740856243135,-8679.19,0.00025173,2]
[354982104,1740856243146,-502.06,0.00025173,2]
[354982106,1740856243155,-500.0,0.00025173,2]
[354982108,1740856243165,-1931.12,0.00025173,2]
[354982110,1740856243174,-500.0,0.00025173,2]
[354982112,1740856243183,-1521.15,0.00025173,2]
[354982114,1740856243193,-2396.33,0.00025173,2]
[354982116,1740856243203,-500.0,0.00025173,2]
[354982118,1740856243212,-761.77,0.00025173,2]
[354982120,1740856243221,-3644.05,0.00025173,2]
[354982122,1740856243231,-500.0,0.00025173,2]
[354982124,1740856243241,-500.0,0.00025173,2]
[354982126,1740856243250,-596.95,0.00025173,2]
[354982128,1740856243260,-500.0,0.00025173,2]
[354982130,1740856243269,-1115.74,0.00025173,2]
[354982132,1740856243278,-500.0,0.00025173,2]
[354982134,1740856243287,-509.14,0.00025173,2]
[354982136,1740856243297,-1414.0,0.00025173,2]
[354982138,1740856243306,-500.0,0.00025173,2]
[354982140,1740856243315,-500.0,0.00025173,2]
[354982142,1740856243324,-1264.97,0.00025173,2]
[354982144,1740856243334,-500.0,0.00025173,2]
[354982146,1740856243342,-1038.26,0.00025173,2]
[354982148,1740856243352,-500.0,0.00025173,2]
[354982150,1740856243362,-500.0,0.00025173,2]
[354982152,1740856243371,-646.95,0.00025173,2]
[354982154,1740856243380,-34072.75,0.00025173,2]
[354982155,1740856243390,-500.0,0.00025173,2]
[354982157,1740856243399,-525.3,0.00025173,2]
[354982159,1740856243408,-358.43228529,0.00025173,2]
[354982161,1740856243417,-500.0,0.00025173,2]
[354982163,1740856243430,-500.0,0.00025173,2]
[354982165,1740856243440,-1539.21,0.00025173,2]
[354982167,1740856243449,-500.0,0.00025173,2]
[354982169,1740856243459,-740.17,0.00025173,2]
[354982171,1740856243468,-500.0,0.00025173,2]
[354982173,1740856243479,-2313.21,0.00025173,2]
[354982175,1740856243488,-500.0,0.00025173,2]
[354982177,1740856243498,-1003.17,0.00025173,2]
[354982179,1740856243508,-500.0,0.00025173,2]
[354982181,1740856243518,-500.0,0.00025173,2]
[354982183,1740856243527,-719.94,0.00025173,2]
[354982185,1740856243537,-500.0,0.00025173,2]
[354982187,1740856243546,-665.91,0.00025173,2]
[354982189,1740856243556,-500.0,0.00025173,2]
[354982191,1740856243565,-500.0,0.00025173,2]
[354982193,1740856243575,-500.0,0.00025173,2]
[354982195,1740856243584,-500.0,0.00025173,2]
[354982197,1740856243594,-511.11621881,0.00025173,2]
[354982199,1740856243603,-1850.39,0.00025173,2]
[354982201,1740856243612,-500.0,0.00025173,2]
[354982203,1740856243622,-500.0,0.00025173,2]
[354982205,1740856243631,-500.0,0.00025173,2]
[354982207,1740856243640,-1357.68,0.00025173,2]
[354982209,1740856243649,-407.70227789,0.00025173,2]
[354982211,1740856243658,-500.0,0.00025173,2]
[354982213,1740856243667,-500.0,0.00025173,2]
[354982215,1740856243676,-500.0,0.00025173,2]
[354982216,1740856243685,-573.18,0.00025173,2]
[354982218,1740856243695,-500.0,0.00025173,2]
[354982220,1740856243704,-500.0,0.00025173,2]
[354982222,1740856243713,-500.0,0.00025173,2]
[354982224,1740856243722,-1183.53,0.00025173,2]
[354982226,1740856243731,-500.0,0.00025173,2]
[354982228,1740856243741,-500.0,0.00025173,2]
[354982230,1740856243750,-457.19920763,0.00025173,2]
[354982232,1740856243760,-500.0,0.00025173,2]
[354982234,1740856243769,-579.62638565,0.00025173,2]
[354982236,1740856243778,-500.0,0.00025173,2]
[354982238,1740856243788,-500.0,0.00025173,2]
[354982240,1740856243797,-500.0,0.00025173,2]
[354982242,1740856243806,-1181.9,0.00025173,2]
[354982244,1740856243815,-500.0,0.00025173,2]
[354982246,1740856243824,-5709.74,0.00025173,2]
[354982248,1740856243833,-807.84,0.00025173,2]
[354982250,1740856243843,-161.76926756,0.00025173,2]
[354982252,1740856243852,-813.58,0.00025173,2]
[354982254,1740856243861,-933.62,0.00025173,2]
[354982256,1740856243870,-500.0,0.00025173,2]
[354982258,1740856243879,-500.0,0.00025173,2]
[354982260,1740856243889,-14955.51,0.00025173,2]
[354982262,1740856243899,-500.0,0.00025173,2]
[354982264,1740856243908,-796.04,0.00025173,2]
[354982266,1740856243917,-500.0,0.00025173,2]
[354982268,1740856243927,-500.0,0.00025173,2]
[354982270,1740856243937,-500.0,0.00025173,2]
[354982272,1740856243946,-500.0,0.00025173,2]
[354982274,1740856243955,-500.0,0.00025173,2]
[354982276,1740856243964,-500.0,0.00025173,2]
[354982278,1740856243974,-500.0,0.00025173,2]
[354982280,1740856243983,-961.27,0.00025173,2]
[354982282,1740856243992,-1593.74,0.00025173,2]
[354982284,1740856244002,-500.0,0.00025173,2]
[354982286,1740856244010,-500.0,0.00025173,2]
[354982288,1740856244019,-500.0,0.00025173,2]
[354982290,1740856244029,-696.22,0.00025173,2]
[354982292,1740856244038,-500.0,0.00025173,2]
[354982294,1740856244047,-897.06,0.00025173,2]
[354982296,1740856244056,-500.0,0.00025173,2]
[354982298,1740856244066,-500.0,0.00025173,2]
[354982300,1740856244075,-1878.41,0.00025173,2]
[354982302,1740856244084,-151.0,0.000252,12]
[354982304,1740856244093,-151.0,0.000252,14]
[354982306,1740856244102,-3771.07314781,0.00025237,2]
[354982308,1740856244112,-3000.0,0.00025248,2]
[354982310,1740856244121,-500.0,0.00025273,2]
[354982312,1740856244130,-500.0,0.00025273,2]
[354982314,1740856244140,-500.0,0.00025273,2]
[354982316,1740856244149,-500.0,0.00025273,2]
[354982318,1740856244159,-500.0,0.00025273,2]
[354982320,1740856244168,-1180.47,0.00025273,2]
[354982322,1740856244177,-845.17,0.00025273,2]
[354982324,1740856244186,-500.0,0.00025273,2]
[354982326,1740856244195,-500.0,0.00025273,2]
[354982328,1740856244205,-500.0,0.00025273,2]
[354982329,1740856244214,-500.0,0.00025273,2]
[354982330,1740856244223,-500.0,0.00025273,2]
[354982331,1740856244233,-500.0,0.00025273,2]
[354982332,1740856244242,-500.0,0.00025273,2]
[354982333,1740856244251,-500.0,0.00025273,2]
[354982334,1740856244260,-978.95,0.00025273,2]
[354982335,1740856244270,-500.0,0.00025273,2]
[354982336,1740856244279,-910.71,0.00025273,2]
[354982337,1740856244287,-1440.76,0.00025273,2]
[354982339,1740856244297,-842.47,0.00025273,2]
[354982341,1740856244306,-500.0,0.00025273,2]
[354982343,1740856244315,-688.58,0.00025273,2]
[354982345,1740856244324,-500.0,0.00025273,2]
[354982347,1740856244334,-500.0,0.00025273,2]
[354982349,1740856244342,-602.24,0.00025273,2]
[354982351,1740856244351,-500.0,0.00025273,2]
[354982353,1740856244361,-551.6,0.00025273,2]
[354982355,1740856244370,-500.0,0.00025273,2]
[354982356,1740856244379,-2518.52,0.00025273,2]
[354982359,1740856244389,-500.0,0.00025273,2]
[354982360,1740856244398,-1649.68,0.00025273,2]
[354982362,1740856244407,-1003.92,0.00025273,2]
[354982364,1740856244416,-501.82,0.00025273,2]
[354982366,1740856244428,-500.0,0.00025273,2]
[354982368,1740856244437,-500.0,0.00025273,2]
[354982370,1740856244446,-1003.16,0.00025273,2]
[354982372,1740856244455,-500.0,0.00025273,2]
[354982375,1740856244467,-2581.08,0.00025273,2]
[354982377,1740856244477,-500.0,0.00025273,2]
[354982378,1740856244486,-500.0,0.00025273,2]
[354982380,1740856244496,-500.0,0.00025273,2]
[354982382,1740856244506,-500.0,0.00025273,2]
[354982384,1740856244515,-500.0,0.00025273,2]
[354982386,1740856244524,-914.51,0.00025273,2]
[354982388,1740856244534,-853.07,0.00025273,2]
[354982390,1740856244543,-500.0,0.00025273,2]
[354982392,1740856244552,-500.0,0.00025273,2]
[354982394,1740856244563,-770.84,0.00025273,2]
[354982396,1740856244572,-1457.14,0.00025273,2]
[354982398,1740856244581,-500.0,0.00025273,2]
[354982400,1740856244591,-1864.39,0.00025273,2]
[354982402,1740856244600,-500.0,0.00025273,2]
[354982404,1740856244610,-500.0,0.00025273,2]
[354982406,1740856244619,-4735.12,0.00025273,2]
[354982408,1740856244628,-500.0,0.00025273,2]
[354982410,1740856244637,-151.0,0.000253,17]
[354982412,1740856244646,-151.0,0.000253,10]
[354982414,1740856244656,-151.0,0.000253,19]
[354982416,1740856244666,-500.0,0.00025346,2]
[354982418,1740856244675,-335.06200885,0.00025346,2]
[354982420,1740856244684,-500.0,0.00025346,2]
[354982422,1740856244693,-500.0,0.00025346,2]
[354982424,1740856244703,-500.0,0.00025346,2]
[354982426,1740856244712,-500.0,0.00025346,2]
[354982428,1740856244721,-500.0,0.00025346,2]
[354982430,1740856244729,-500.0,0.00025346,2]
[354982432,1740856244739,-500.0,0.00025346,2]
[354982434,1740856244748,-500.0,0.00025346,2]
[354982436,1740856244758,-500.0,0.00025346,2]
[354982438,1740856244767,-518.25452609,0.00025346,2]
[354982440,1740856244776,-500.0,0.00025346,2]
[354982442,1740856244786,-668.16,0.00025346,2]
[354982444,1740856244795,-500.0,0.00025346,2]
[354982446,1740856244804,-517.33893347,0.00025346,2]
[354982448,1740856244813,-500.0,0.00025346,2]
[354982450,1740856244822,-500.0,0.00025346,2]
[354982452,1740856244832,-514.09717767,0.00025346,2]
[354982454,1740856244841,-500.0,0.00025346,2]
[354982456,1740856244850,-500.0,0.00025346,2]
[354982458,1740856244859,-500.0,0.00025346,2]